[Event "*** Titled Tuesday Blitz"]
[Site "Chess.com"]
[Date "2020.05.05"]
[Round "7"]
[White "dianosky"]
[Black "Fins0905"]
[Result "1-0"]
[WhiteElo "2468"]
[BlackElo "2626"]
[TimeControl "180+1"]
[EndTime "11:20:00 PDT"]
[Termination "dianosky won by resignation"]

1. d4 {[%clk 0:03:00.9]} 1... d5 {[%clk 0:02:58]} 2. c4 {[%clk 0:03:01.1]} 2...
c6 {[%clk 0:02:57.6]} 3. Nc3 {[%clk 0:03:01.3]} 3... Nf6 {[%clk 0:02:57]} 4. Nf3
{[%clk 0:03:01.2]} 4... e6 {[%clk 0:02:56.2]} 5. Bg5 {[%clk 0:03:00.9]} 5...
Nbd7 {[%clk 0:02:56]} 6. e3 {[%clk 0:03:01]} 6... Qa5 {[%clk 0:02:55.3]} 7. Bxf6
{[%clk 0:03:01.3]} 7... Nxf6 {[%clk 0:02:54.7]} 8. Qc2 {[%clk 0:03:02.1]} 8...
Be7 {[%clk 0:02:48.6]} 9. Bd3 {[%clk 0:02:59.8]} 9... O-O {[%clk 0:02:46]} 10.
O-O {[%clk 0:02:59.3]} 10... dxc4 {[%clk 0:02:23.4]} 11. Bxc4 {[%clk 0:02:59.1]}
11... Rd8 {[%clk 0:02:15.2]} 12. Rfd1 {[%clk 0:02:47.6]} 12... Qc7 {[%clk
0:02:03.7]} 13. Rac1 {[%clk 0:02:44.6]} 13... b6 {[%clk 0:02:01.3]} 14. Bd3
{[%clk 0:02:27.8]} 14... Bb7 {[%clk 0:02:00]} 15. Ne5 {[%clk 0:02:27.4]} 15...
Rac8 {[%clk 0:01:47]} 16. Ne4 {[%clk 0:01:47.7]} 16... g6 {[%clk 0:01:36]} 17.
Nxf6+ {[%clk 0:01:39]} 17... Bxf6 {[%clk 0:01:35.9]} 18. f4 {[%clk 0:01:39.1]}
18... c5 {[%clk 0:01:28]} 19. Be4 {[%clk 0:01:39]} 19... Qb8 {[%clk 0:01:21.2]}
20. Qd3 {[%clk 0:01:25.1]} 20... cxd4 {[%clk 0:01:04.5]} 21. Rxc8 {[%clk
0:01:15.8]} 21... Qxc8 {[%clk 0:01:00.8]} 22. exd4 {[%clk 0:01:15.5]} 22... Be7
{[%clk 0:00:36.4]} 23. Qf3 {[%clk 0:01:04]} 23... Bxe4 {[%clk 0:00:32.1]} 24.
Qxe4 {[%clk 0:01:04.1]} 24... Bd6 {[%clk 0:00:22.7]} 25. Kf2 {[%clk 0:00:49]}
25... Kg7 {[%clk 0:00:18.1]} 26. d5 {[%clk 0:00:41.1]} 26... Bc5+ {[%clk
0:00:16.3]} 27. Kg3 {[%clk 0:00:40.1]} 27... exd5 {[%clk 0:00:13.7]} 28. Rxd5
{[%clk 0:00:39.6]} 28... Qb7 {[%clk 0:00:13.3]} 29. Rd4 {[%clk 0:00:15.8]} 29...
Qxe4 {[%clk 0:00:13.2]} 30. Rxe4 {[%clk 0:00:16.4]} 30... Rd2 {[%clk 0:00:13.8]}
31. b4 {[%clk 0:00:15.6]} 31... Bf2+ {[%clk 0:00:12.7]} 32. Kf3 {[%clk
0:00:15.1]} 32... Rxa2 {[%clk 0:00:13.3]} 33. Rc4 {[%clk 0:00:13]} 33... Be1
{[%clk 0:00:12.4]} 34. Rc7 {[%clk 0:00:12.3]} 34... Bxb4 {[%clk 0:00:09.3]} 35.
Rxf7+ {[%clk 0:00:11.9]} 35... Kg8 {[%clk 0:00:09.8]} 36. Rd7 {[%clk 0:00:08.7]}
36... Ra3+ {[%clk 0:00:07.8]} 37. Kg4 {[%clk 0:00:08.5]} 37... Bf8 {[%clk
0:00:06.7]} 38. Rd8 {[%clk 0:00:05.9]} 38... Kg7 {[%clk 0:00:06]} 39. Rb8 {[%clk
0:00:05.2]} 39... Ra4 {[%clk 0:00:02.4]} 40. g3 {[%clk 0:00:04.8]} 40... Kg8
{[%clk 0:00:02.8]} 41. Nd7 {[%clk 0:00:04.4]} 41... Kf7 {[%clk 0:00:03.2]} 42.
Nxf8 {[%clk 0:00:04.4]} 42... Ke7 {[%clk 0:00:03.7]} 43. Nxh7 {[%clk 0:00:04.6]}
43... Kd6 {[%clk 0:00:03.8]} 44. Kg5 {[%clk 0:00:04.5]} 44... Ra2 {[%clk
0:00:03.6]} 45. h4 {[%clk 0:00:04.9]} 45... Rg2 {[%clk 0:00:03.3]} 46. g4 {[%clk
0:00:05.4]} 46... Kc5 {[%clk 0:00:03.9]} 47. Nf8 {[%clk 0:00:04.5]} 47... b5
{[%clk 0:00:04.8]} 48. Nd7+ {[%clk 0:00:04.6]} 48... Kc4 {[%clk 0:00:04.9]} 49.
Ne5+ {[%clk 0:00:01.9]} 49... Kc5 {[%clk 0:00:05.2]} 50. Nxg6 {[%clk 0:00:02.2]}
50... b4 {[%clk 0:00:05.8]} 51. h5 {[%clk 0:00:02.9]} 51... a5 {[%clk
0:00:05.9]} 52. h6 {[%clk 0:00:03.5]} 52... a4 {[%clk 0:00:06.4]} 53. h7 {[%clk
0:00:04]} 53... Rh2 {[%clk 0:00:07]} 54. Nh4 {[%clk 0:00:04.5]} 54... Rd2 {[%clk
0:00:06.3]} 55. h8=Q {[%clk 0:00:04.8]} 55... Rd5+ {[%clk 0:00:07.2]} 56. f5
{[%clk 0:00:05.2]} 56... Kc4 {[%clk 0:00:07.2]} 57. Rc8+ {[%clk 0:00:05.3]}
57... Rc5 {[%clk 0:00:07.4]} 58. Qg8+ {[%clk 0:00:05.1]} 58... Kb5 {[%clk
0:00:07.2]} 59. Rxc5+ {[%clk 0:00:05.3]} 59... Kxc5 {[%clk 0:00:08.1]} 60. Nf3
{[%clk 0:00:05.7]} 60... b3 {[%clk 0:00:08.4]} 61. Qc8+ {[%clk 0:00:06.4]} 61...
Kb4 {[%clk 0:00:08.8]} 62. Nd4 {[%clk 0:00:06.9]} 62... a3 {[%clk 0:00:08.7]}
63. Nxb3 {[%clk 0:00:07.2]} 63... Kxb3 {[%clk 0:00:08.7]} 64. Qa6 {[%clk
0:00:07.4]} 1-0

[Event "*** Titled Tuesday Blitz"]
[Site "Chess.com"]
[Date "2020.05.05"]
[Round "7"]
[White "Gloomy_Wanderer"]
[Black "MightyGMpretender"]
[Result "1-0"]
[WhiteElo "2783"]
[BlackElo "2575"]
[TimeControl "180+1"]
[EndTime "11:20:02 PDT"]
[Termination "Gloomy_Wanderer won by checkmate"]

1. d4 {[%clk 0:03:00.1]} 1... Nf6 {[%clk 0:02:59.6]} 2. Nf3 {[%clk 0:03:00]}
2... d5 {[%clk 0:02:58.8]} 3. c4 {[%clk 0:02:59.7]} 3... e6 {[%clk 0:02:58.9]}
4. g3 {[%clk 0:02:59.6]} 4... dxc4 {[%clk 0:02:53.6]} 5. Bg2 {[%clk 0:02:59.3]}
5... Bb4+ {[%clk 0:02:53.8]} 6. Bd2 {[%clk 0:02:58.9]} 6... a5 {[%clk 0:02:54]}
7. a3 {[%clk 0:02:55.8]} 7... Be7 {[%clk 0:02:34.9]} 8. Qa4+ {[%clk 0:02:54.9]}
8... Bd7 {[%clk 0:02:33.9]} 9. Qxc4 {[%clk 0:02:54.8]} 9... Bc6 {[%clk
0:02:34.4]} 10. O-O {[%clk 0:02:47.5]} 10... O-O {[%clk 0:02:32.1]} 11. Nc3
{[%clk 0:02:45.2]} 11... Nbd7 {[%clk 0:02:27]} 12. Rac1 {[%clk 0:02:41.7]} 12...
a4 {[%clk 0:02:11.4]} 13. Qd3 {[%clk 0:02:31.2]} 13... Re8 {[%clk 0:02:09.3]}
14. Rfd1 {[%clk 0:02:14.5]} 14... Bxf3 {[%clk 0:01:45.2]} 15. Bxf3 {[%clk
0:02:13.2]} 15... c6 {[%clk 0:01:45.7]} 16. h4 {[%clk 0:02:00.3]} 16... Nf8
{[%clk 0:01:40.6]} 17. Be1 {[%clk 0:01:53.5]} 17... Nd5 {[%clk 0:01:34.4]} 18.
Ne4 {[%clk 0:01:46.4]} 18... Nd7 {[%clk 0:01:33.5]} 19. Qc2 {[%clk 0:01:41]}
19... Bf8 {[%clk 0:01:30.3]} 20. Ng5 {[%clk 0:01:38.8]} 20... g6 {[%clk
0:01:29.2]} 21. e4 {[%clk 0:01:37.5]} 21... N5f6 {[%clk 0:01:20.6]} 22. Bc3
{[%clk 0:01:23.6]} 22... h6 {[%clk 0:01:19.5]} 23. Nh3 {[%clk 0:01:20.6]} 23...
Bg7 {[%clk 0:01:19.6]} 24. Nf4 {[%clk 0:01:15.3]} 24... Qc7 {[%clk 0:01:09.3]}
25. Nd3 {[%clk 0:00:59.9]} 25... h5 {[%clk 0:01:03.6]} 26. Bb4 {[%clk
0:00:54.1]} 26... Red8 {[%clk 0:00:51.3]} 27. e5 {[%clk 0:00:42.2]} 27... Nd5
{[%clk 0:00:48.8]} 28. Bxd5 {[%clk 0:00:42.2]} 28... exd5 {[%clk 0:00:48.1]} 29.
Nf4 {[%clk 0:00:42.6]} 29... Bh6 {[%clk 0:00:45.2]} 30. Nxd5 {[%clk 0:00:41]}
30... Qb8 {[%clk 0:00:39.8]} 31. Ne7+ {[%clk 0:00:37.8]} 31... Kh7 {[%clk
0:00:39.5]} 32. Rb1 {[%clk 0:00:31.3]} 32... Re8 {[%clk 0:00:37.8]} 33. e6
{[%clk 0:00:30.6]} 33... Nf8 {[%clk 0:00:32.1]} 34. exf7 {[%clk 0:00:29.3]}
34... Rd8 {[%clk 0:00:32.7]} 35. Qe4 {[%clk 0:00:24]} 35... Qc7 {[%clk
0:00:30.6]} 36. Rd3 {[%clk 0:00:19.7]} 36... Qd7 {[%clk 0:00:28.8]} 37. Re1
{[%clk 0:00:18.7]} 37... b6 {[%clk 0:00:21.9]} 38. d5 {[%clk 0:00:17.4]} 38...
c5 {[%clk 0:00:22]} 39. Bc3 {[%clk 0:00:17.6]} 39... Bg7 {[%clk 0:00:18.1]} 40.
d6 {[%clk 0:00:16.2]} 40... Bxc3 {[%clk 0:00:15]} 41. bxc3 {[%clk 0:00:17.1]}
41... Qb5 {[%clk 0:00:14.5]} 42. Rd5 {[%clk 0:00:16]} 42... Qb3 {[%clk
0:00:13.7]} 43. Rxh5+ {[%clk 0:00:15.4]} 43... Kg7 {[%clk 0:00:14.6]} 44. Rd5
{[%clk 0:00:11.7]} 44... Qxc3 {[%clk 0:00:14.2]} 45. h5 {[%clk 0:00:12.1]} 45...
Qxa3 {[%clk 0:00:09]} 46. hxg6 {[%clk 0:00:10.9]} 46... Qc3 {[%clk 0:00:09.2]}
47. Nf5+ {[%clk 0:00:10.8]} 47... Kf6 {[%clk 0:00:09.1]} 48. Qe7+ {[%clk
0:00:09.9]} 48... Kxg6 {[%clk 0:00:08.4]} 49. Nh4+ {[%clk 0:00:09.6]} 49... Kh7
{[%clk 0:00:08.5]} 50. Rh5+ {[%clk 0:00:09.2]} 50... Kg7 {[%clk 0:00:07.8]} 51.
Nf5+ {[%clk 0:00:08.9]} 51... Kg6 {[%clk 0:00:08]} 52. Qg5+ {[%clk 0:00:09.3]}
52... Kxf7 {[%clk 0:00:08.5]} 53. Rh6 {[%clk 0:00:08.4]} 53... Qxe1+ {[%clk
0:00:08.1]} 54. Kg2 {[%clk 0:00:08.4]} 54... Qe4+ {[%clk 0:00:08.3]} 55. Kh2
{[%clk 0:00:08.9]} 55... Qe5 {[%clk 0:00:03]} 56. Qh5+ {[%clk 0:00:07.8]} 56...
Kg8 {[%clk 0:00:02.6]} 57. Ne7+ {[%clk 0:00:08.1]} 57... Kg7 {[%clk 0:00:02.1]}
58. Qxe5+ {[%clk 0:00:08.4]} 58... Kxh6 {[%clk 0:00:01.7]} 59. f4 {[%clk
0:00:08.7]} 59... a3 {[%clk 0:00:01.6]} 60. Qg5+ {[%clk 0:00:08.9]} 60... Kh7
{[%clk 0:00:02.1]} 61. Qg8+ {[%clk 0:00:09.2]} 61... Kh6 {[%clk 0:00:03]} 62.
Nf5+ {[%clk 0:00:09.9]} 62... Kh5 {[%clk 0:00:03.4]} 63. g4# {[%clk 0:00:10.8]}
1-0

[Event "*** Titled Tuesday Blitz"]
[Site "Chess.com"]
[Date "2020.05.05"]
[Round "7"]
[White "pooh2012"]
[Black "AndrewDGreen"]
[Result "0-1"]
[WhiteElo "2447"]
[BlackElo "2298"]
[TimeControl "180+1"]
[EndTime "11:20:02 PDT"]
[Termination "AndrewDGreen won by resignation"]

1. d4 {[%clk 0:03:00.9]} 1... Nf6 {[%clk 0:02:58.9]} 2. a3 {[%clk 0:03:00.3]}
2... g6 {[%clk 0:02:58.6]} 3. Nf3 {[%clk 0:03:00.1]} 3... Bg7 {[%clk 0:02:58.5]}
4. e3 {[%clk 0:03:01]} 4... c5 {[%clk 0:02:57.7]} 5. Be2 {[%clk 0:03:01.9]} 5...
O-O {[%clk 0:02:57.3]} 6. O-O {[%clk 0:02:53.3]} 6... Nc6 {[%clk 0:02:53.8]} 7.
dxc5 {[%clk 0:02:39.4]} 7... Ne4 {[%clk 0:02:50.6]} 8. Qd5 {[%clk 0:02:36.3]}
8... Nf6 {[%clk 0:02:45.8]} 9. Qd3 {[%clk 0:02:21.7]} 9... b6 {[%clk 0:02:43.4]}
10. cxb6 {[%clk 0:02:19.6]} 10... axb6 {[%clk 0:02:44.3]} 11. Nc3 {[%clk
0:02:16]} 11... d6 {[%clk 0:02:11.9]} 12. Nd4 {[%clk 0:02:02.3]} 12... Ne5
{[%clk 0:02:04]} 13. Qd1 {[%clk 0:01:58.4]} 13... Bb7 {[%clk 0:01:59.9]} 14. f4
{[%clk 0:01:52.3]} 14... Nc6 {[%clk 0:01:53.6]} 15. Bf3 {[%clk 0:01:50.3]} 15...
Qd7 {[%clk 0:01:50.7]} 16. Nxc6 {[%clk 0:01:45.1]} 16... Bxc6 {[%clk 0:01:50.2]}
17. e4 {[%clk 0:01:42.2]} 17... Qb7 {[%clk 0:01:39.4]} 18. Qd3 {[%clk
0:01:32.6]} 18... Rfc8 {[%clk 0:01:22.2]} 19. Be3 {[%clk 0:01:05.9]} 19... b5
{[%clk 0:01:10.9]} 20. e5 {[%clk 0:00:44.2]} 20... dxe5 {[%clk 0:00:55.9]} 21.
fxe5 {[%clk 0:00:43.7]} 21... Nd7 {[%clk 0:00:56.5]} 22. e6 {[%clk 0:00:40.5]}
22... fxe6 {[%clk 0:00:55]} 23. Bg4 {[%clk 0:00:33.3]} 23... Ne5 {[%clk
0:00:41.7]} 24. Bxe6+ {[%clk 0:00:32.4]} 24... Kh8 {[%clk 0:00:42.3]} 25. Qe2
{[%clk 0:00:32.3]} 25... Rf8 {[%clk 0:00:36]} 26. Bf4 {[%clk 0:00:22.1]} 26...
Nc4 {[%clk 0:00:32.9]} 27. Bxc4 {[%clk 0:00:19.1]} 27... bxc4 {[%clk 0:00:33.8]}
28. Be5 {[%clk 0:00:19.6]} 28... Qa7+ {[%clk 0:00:07]} 29. Kh1 {[%clk 0:00:19]}
29... Qc5 {[%clk 0:00:07.1]} 30. Bxg7+ {[%clk 0:00:16.8]} 30... Kxg7 {[%clk
0:00:08]} 31. Rae1 {[%clk 0:00:07.9]} 31... Rxf1+ {[%clk 0:00:05.9]} 32. Rxf1
{[%clk 0:00:08.8]} 32... Rf8 {[%clk 0:00:02.8]} 33. Rxf8 {[%clk 0:00:07.8]}
33... Kxf8 {[%clk 0:00:03.7]} 34. h3 {[%clk 0:00:06.4]} 34... Qg5 {[%clk
0:00:02.9]} 35. Qf2+ {[%clk 0:00:05.6]} 35... Kg8 {[%clk 0:00:02.2]} 36. Ne2
{[%clk 0:00:05.6]} 36... Qd2 {[%clk 0:00:01.2]} 37. Kg1 {[%clk 0:00:03.6]} 37...
Qd1+ {[%clk 0:00:01.7]} 38. Kh2 {[%clk 0:00:03.5]} 38... Qxc2 {[%clk 0:00:02.2]}
39. Kg3 {[%clk 0:00:02.7]} 39... Qe4 {[%clk 0:00:02.8]} 40. Nf4 {[%clk
0:00:02.5]} 40... Qe5 {[%clk 0:00:02.9]} 41. h4 {[%clk 0:00:01.3]} 41... g5
{[%clk 0:00:03.4]} 42. Kh2 {[%clk 0:00:01.7]} 42... Qxf4+ {[%clk 0:00:03.2]} 43.
Qxf4 {[%clk 0:00:01.9]} 43... gxf4 {[%clk 0:00:04.1]} 44. Kg1 {[%clk 0:00:02.6]}
44... Be4 {[%clk 0:00:04.3]} 45. Kf2 {[%clk 0:00:03.2]} 45... Kf7 {[%clk
0:00:04.5]} 46. g3 {[%clk 0:00:04.1]} 46... e5 {[%clk 0:00:05]} 47. gxf4 {[%clk
0:00:04.4]} 47... exf4 {[%clk 0:00:05.9]} 48. Ke2 {[%clk 0:00:05.1]} 48... Ke6
{[%clk 0:00:06.4]} 49. Kf2 {[%clk 0:00:06]} 49... Kd5 {[%clk 0:00:06.9]} 50. a4
{[%clk 0:00:06.9]} 50... Bd3 {[%clk 0:00:07.5]} 51. a5 {[%clk 0:00:07.8]} 51...
c3 {[%clk 0:00:08]} 52. bxc3 {[%clk 0:00:07.8]} 52... Kc4 {[%clk 0:00:07.6]} 53.
Kf3 {[%clk 0:00:08.3]} 53... Kxc3 {[%clk 0:00:07.6]} 54. Kxf4 {[%clk 0:00:09.2]}
54... Kb4 {[%clk 0:00:07.7]} 55. Kg5 {[%clk 0:00:09.7]} 55... Kxa5 {[%clk
0:00:08.2]} 56. h5 {[%clk 0:00:09.8]} 56... Kb5 {[%clk 0:00:08.6]} 57. h6 {[%clk
0:00:10.3]} 57... Kc5 {[%clk 0:00:09.1]} 58. Kf6 {[%clk 0:00:10.8]} 58... Kd6
{[%clk 0:00:09.4]} 59. Kg7 {[%clk 0:00:11.7]} 59... Bg6 {[%clk 0:00:09.4]} 60.
Kf6 {[%clk 0:00:12.1]} 60... Kd5 {[%clk 0:00:09.6]} 61. Kg5 {[%clk 0:00:13]}
61... Ke4 {[%clk 0:00:10]} 62. Kg4 {[%clk 0:00:13.4]} 62... Ke5 {[%clk
0:00:10.6]} 63. Kg5 {[%clk 0:00:14.3]} 63... Ke6 {[%clk 0:00:11]} 64. Kg4 {[%clk
0:00:15]} 64... Kf6 {[%clk 0:00:11.6]} 65. Kh4 {[%clk 0:00:15.6]} 65... Kf5
{[%clk 0:00:12]} 66. Kh3 {[%clk 0:00:15.3]} 66... Kg5 {[%clk 0:00:12.5]} 67. Kg3
{[%clk 0:00:16.2]} 67... Kxh6 {[%clk 0:00:13.3]} 68. Kh4 {[%clk 0:00:17.1]}
68... Kg7 {[%clk 0:00:13.2]} 69. Kh3 {[%clk 0:00:18]} 69... Kf6 {[%clk
0:00:13.9]} 70. Kg3 {[%clk 0:00:18.9]} 70... h6 {[%clk 0:00:14.1]} 71. Kh4
{[%clk 0:00:19.8]} 71... Kg7 {[%clk 0:00:14.1]} 72. Kh3 {[%clk 0:00:20.7]} 72...
Bf5+ {[%clk 0:00:14.2]} 73. Kg3 {[%clk 0:00:21.6]} 73... Kg6 {[%clk 0:00:14.6]}
74. Kh4 {[%clk 0:00:22.5]} 74... Be6 {[%clk 0:00:14.6]} 75. Kg3 {[%clk
0:00:23.4]} 75... Kg5 {[%clk 0:00:14.9]} 76. Kh2 {[%clk 0:00:23.5]} 76... h5
{[%clk 0:00:15.3]} 77. Kg2 {[%clk 0:00:24.4]} 77... h4 {[%clk 0:00:15.6]} 78.
Kh2 {[%clk 0:00:25.3]} 78... Kg4 {[%clk 0:00:15.7]} 79. Kg2 {[%clk 0:00:26.2]}
79... h3+ {[%clk 0:00:15.5]} 80. Kh2 {[%clk 0:00:27.1]} 80... Kh4 {[%clk
0:00:15.7]} 81. Kh1 {[%clk 0:00:27.3]} 81... Kg3 {[%clk 0:00:13.5]} 82. Kg1
{[%clk 0:00:27.5]} 82... h2+ {[%clk 0:00:13.5]} 0-1

[Event "*** Titled Tuesday Blitz"]
[Site "Chess.com"]
[Date "2020.05.05"]
[Round "7"]
[White "kleopl"]
[Black "konradrutkowski"]
[Result "1-0"]
[WhiteElo "2450"]
[BlackElo "2198"]
[TimeControl "180+1"]
[EndTime "11:20:04 PDT"]
[Termination "kleopl won by resignation"]

1. c4 {[%clk 0:03:00.9]} 1... Nf6 {[%clk 0:02:59.1]} 2. Nc3 {[%clk 0:02:59.8]}
2... g6 {[%clk 0:02:55.4]} 3. g3 {[%clk 0:02:59.3]} 3... Bg7 {[%clk 0:02:55]} 4.
Bg2 {[%clk 0:02:59.6]} 4... O-O {[%clk 0:02:55.2]} 5. e4 {[%clk 0:02:59.9]} 5...
d6 {[%clk 0:02:55.4]} 6. Nge2 {[%clk 0:03:00.4]} 6... e5 {[%clk 0:02:54.1]} 7.
O-O {[%clk 0:03:00.9]} 7... Nc6 {[%clk 0:02:48.8]} 8. d3 {[%clk 0:03:00.9]} 8...
Nd7 {[%clk 0:02:47.9]} 9. h3 {[%clk 0:03:00.7]} 9... Nc5 {[%clk 0:02:47]} 10.
Rb1 {[%clk 0:02:59.1]} 10... a5 {[%clk 0:02:44.2]} 11. b3 {[%clk 0:02:58.4]}
11... f5 {[%clk 0:02:40.3]} 12. a3 {[%clk 0:02:55.5]} 12... Bd7 {[%clk
0:02:11.7]} 13. b4 {[%clk 0:02:52.1]} 13... axb4 {[%clk 0:02:10.8]} 14. axb4
{[%clk 0:02:53]} 14... Ne6 {[%clk 0:02:10.8]} 15. exf5 {[%clk 0:02:49.9]} 15...
gxf5 {[%clk 0:02:08.7]} 16. Nd5 {[%clk 0:02:50]} 16... Ncd4 {[%clk 0:02:05.3]}
17. Nxd4 {[%clk 0:02:41.5]} 17... Nxd4 {[%clk 0:02:04]} 18. f4 {[%clk
0:02:34.8]} 18... c6 {[%clk 0:01:59.6]} 19. Nc3 {[%clk 0:02:21.2]} 19... exf4
{[%clk 0:01:24.1]} 20. Bxf4 {[%clk 0:02:19.1]} 20... Qf6 {[%clk 0:01:23]} 21.
Kh1 {[%clk 0:02:08.2]} 21... Ra3 {[%clk 0:01:13.2]} 22. Ne2 {[%clk 0:01:59.1]}
22... Nxe2 {[%clk 0:01:10.7]} 23. Qxe2 {[%clk 0:02:00]} 23... Re8 {[%clk
0:01:10.6]} 24. Qd2 {[%clk 0:01:56]} 24... Qd4 {[%clk 0:01:10.4]} 25. Rbd1
{[%clk 0:01:54.5]} 25... Rea8 {[%clk 0:00:57.1]} 26. Rf3 {[%clk 0:00:51.8]}
26... Ra2 {[%clk 0:00:55.9]} 27. Qe3 {[%clk 0:00:51.4]} 27... Qb2 {[%clk
0:00:42.1]} 28. Qd2 {[%clk 0:00:45.1]} 28... Qb3 {[%clk 0:00:34.4]} 29. Qe3
{[%clk 0:00:30.7]} 29... Re8 {[%clk 0:00:33.2]} 30. Qg1 {[%clk 0:00:28.9]} 30...
Ree2 {[%clk 0:00:31.6]} 31. Bf1 {[%clk 0:00:25.5]} 31... Qxd1 {[%clk 0:00:28.4]}
32. Bxe2 {[%clk 0:00:22.9]} 32... Qxg1+ {[%clk 0:00:24.6]} 33. Kxg1 {[%clk
0:00:23.8]} 33... Rxe2 {[%clk 0:00:22.7]} 34. Bxd6 {[%clk 0:00:23.7]} 34... Bd4+
{[%clk 0:00:22.2]} 35. Kf1 {[%clk 0:00:23.2]} 35... Rh2 {[%clk 0:00:20.5]} 36.
h4 {[%clk 0:00:22.5]} 36... Kf7 {[%clk 0:00:20.1]} 37. Rf4 {[%clk 0:00:22.2]}
37... Be3 {[%clk 0:00:18.6]} 38. Rf3 {[%clk 0:00:22.4]} 38... Bd2 {[%clk
0:00:18.3]} 39. Bc5 {[%clk 0:00:21.3]} 39... Kg6 {[%clk 0:00:16.3]} 40. Bg1
{[%clk 0:00:20.9]} 40... Rh1 {[%clk 0:00:13.9]} 41. Kg2 {[%clk 0:00:20.8]} 41...
Rxg1+ {[%clk 0:00:14.2]} 42. Kxg1 {[%clk 0:00:21.2]} 42... Bxb4 {[%clk
0:00:14.9]} 43. Kg2 {[%clk 0:00:21.1]} 43... Bc5 {[%clk 0:00:14.1]} 44. Rf1
{[%clk 0:00:21]} 44... b5 {[%clk 0:00:14.4]} 45. cxb5 {[%clk 0:00:18.8]} 45...
cxb5 {[%clk 0:00:14.2]} 46. Rc1 {[%clk 0:00:19.4]} 46... Bd4 {[%clk 0:00:12.3]}
47. Rc7 {[%clk 0:00:19]} 47... Be8 {[%clk 0:00:11.3]} 48. Kf3 {[%clk 0:00:18.9]}
48... b4 {[%clk 0:00:10.4]} 49. Kf4 {[%clk 0:00:17]} 49... Bc3 {[%clk
0:00:08.8]} 50. Rb7 {[%clk 0:00:16.2]} 50... Bd2+ {[%clk 0:00:02.4]} 51. Ke5
{[%clk 0:00:14.8]} 51... Bc3+ {[%clk 0:00:03.3]} 52. Kd5 {[%clk 0:00:14]} 52...
Bd2 {[%clk 0:00:04.2]} 53. d4 {[%clk 0:00:13.8]} 53... Kh5 {[%clk 0:00:04.5]}
54. Rxh7+ {[%clk 0:00:12.9]} 54... Kg4 {[%clk 0:00:03.9]} 55. Rg7+ {[%clk
0:00:13.1]} 55... Kf3 {[%clk 0:00:04.2]} 56. Kc4 {[%clk 0:00:12.3]} 56... Bh5
{[%clk 0:00:01.7]} 57. Rh7 {[%clk 0:00:11.5]} 57... Bg4 {[%clk 0:00:02.6]} 58.
h5 {[%clk 0:00:11.1]} 58... Kxg3 {[%clk 0:00:03.5]} 59. h6 {[%clk 0:00:10.8]}
59... f4 {[%clk 0:00:04.4]} 60. Rg7 {[%clk 0:00:10.2]} 60... Kh4 {[%clk
0:00:03]} 61. h7 {[%clk 0:00:10.2]} 61... Bf5 {[%clk 0:00:03.9]} 62. h8=Q+
{[%clk 0:00:10]} 1-0

[Event "*** Titled Tuesday Blitz"]
[Site "Chess.com"]
[Date "2020.05.05"]
[Round "7"]
[White "ZarinaShafigullina"]
[Black "LiderChessAcademy"]
[Result "0-1"]
[WhiteElo "2251"]
[BlackElo "2462"]
[TimeControl "180+1"]
[EndTime "11:20:05 PDT"]
[Termination "LiderChessAcademy won on time"]

1. d4 {[%clk 0:03:00.9]} 1... Nf6 {[%clk 0:02:29.3]} 2. Nf3 {[%clk 0:03:01.8]}
2... d5 {[%clk 0:02:29.1]} 3. g3 {[%clk 0:03:02.2]} 3... c5 {[%clk 0:02:29.4]}
4. Bg2 {[%clk 0:03:00]} 4... cxd4 {[%clk 0:02:29.6]} 5. O-O {[%clk 0:03:00.7]}
5... g6 {[%clk 0:02:24.1]} 6. Nxd4 {[%clk 0:02:55.7]} 6... Bg7 {[%clk
0:02:24.6]} 7. c4 {[%clk 0:02:55.4]} 7... dxc4 {[%clk 0:02:23]} 8. Qa4+ {[%clk
0:02:52.8]} 8... Nbd7 {[%clk 0:02:20.4]} 9. Rd1 {[%clk 0:02:41.3]} 9... O-O
{[%clk 0:02:16.3]} 10. Qxc4 {[%clk 0:02:40]} 10... Nb6 {[%clk 0:02:16.3]} 11.
Qc2 {[%clk 0:02:39.2]} 11... Qe8 {[%clk 0:01:51.6]} 12. Nc3 {[%clk 0:02:38]}
12... a6 {[%clk 0:01:50.4]} 13. a4 {[%clk 0:02:35.1]} 13... e5 {[%clk
0:01:48.1]} 14. Nb3 {[%clk 0:02:28]} 14... Bf5 {[%clk 0:01:45]} 15. e4 {[%clk
0:02:21.7]} 15... Bg4 {[%clk 0:01:42]} 16. f3 {[%clk 0:02:21.6]} 16... Be6
{[%clk 0:01:41.2]} 17. Nc5 {[%clk 0:02:20.2]} 17... Rc8 {[%clk 0:01:32.4]} 18.
Nxe6 {[%clk 0:01:47.5]} 18... Qxe6 {[%clk 0:01:33.3]} 19. a5 {[%clk 0:01:45.1]}
19... Nc4 {[%clk 0:01:26.4]} 20. Qb3 {[%clk 0:01:40.6]} 20... Rfd8 {[%clk
0:01:10.3]} 21. Rxd8+ {[%clk 0:01:33.8]} 21... Rxd8 {[%clk 0:01:11.2]} 22. Bf1
{[%clk 0:01:14.6]} 22... Rc8 {[%clk 0:00:52.6]} 23. Qxb7 {[%clk 0:01:11.7]}
23... Bf8 {[%clk 0:00:43.1]} 24. Bg5 {[%clk 0:01:05]} 24... Ne8 {[%clk
0:00:22.7]} 25. Nd5 {[%clk 0:00:20.3]} 25... f6 {[%clk 0:00:21.9]} 26. Nxf6+
{[%clk 0:00:18.1]} 26... Nxf6 {[%clk 0:00:21.1]} 27. Bxf6 {[%clk 0:00:16.1]}
27... Nd6 {[%clk 0:00:20.9]} 28. Qd5 {[%clk 0:00:14.4]} 28... Qxd5 {[%clk
0:00:17.5]} 29. exd5 {[%clk 0:00:14.6]} 29... e4 {[%clk 0:00:16.8]} 30. Bxa6
{[%clk 0:00:14]} 30... Ra8 {[%clk 0:00:12.3]} 31. Bf1 {[%clk 0:00:13.6]} 31...
exf3 {[%clk 0:00:12.3]} 32. Kf2 {[%clk 0:00:13.1]} 32... Ne4+ {[%clk 0:00:12.5]}
33. Kxf3 {[%clk 0:00:13.4]} 33... Nxf6 {[%clk 0:00:13.4]} 34. Bc4 {[%clk
0:00:12.1]} 34... Kg7 {[%clk 0:00:12.8]} 35. b3 {[%clk 0:00:12.2]} 35... Bc5
{[%clk 0:00:12.9]} 36. a6 {[%clk 0:00:12.3]} 36... Nd7 {[%clk 0:00:12.9]} 37.
Re1 {[%clk 0:00:12]} 37... Kf8 {[%clk 0:00:10.8]} 38. Re6 {[%clk 0:00:12]} 38...
Bd4 {[%clk 0:00:08.5]} 39. Ke4 {[%clk 0:00:11.3]} 39... Bg1 {[%clk 0:00:06.3]}
40. Rd6 {[%clk 0:00:10.1]} 40... Nc5+ {[%clk 0:00:06]} 41. Kf3 {[%clk
0:00:10.1]} 41... Bxh2 {[%clk 0:00:05.2]} 42. Rc6 {[%clk 0:00:09.5]} 42... Bg1
{[%clk 0:00:03.7]} 43. b4 {[%clk 0:00:09.9]} 43... Na4 {[%clk 0:00:02.2]} 44. b5
{[%clk 0:00:09.7]} 44... Nb6 {[%clk 0:00:02.6]} 45. Bb3 {[%clk 0:00:09]} 45...
Bd4 {[%clk 0:00:03]} 46. d6 {[%clk 0:00:08.7]} 46... Ke8 {[%clk 0:00:03.5]} 47.
Rc7 {[%clk 0:00:08.2]} 47... Kd8 {[%clk 0:00:03.6]} 48. Rxh7 {[%clk 0:00:08.1]}
48... Nd7 {[%clk 0:00:03.3]} 49. Rh6 {[%clk 0:00:07]} 49... Rb8 {[%clk
0:00:02.3]} 50. Bc4 {[%clk 0:00:05.9]} 50... Rb6 {[%clk 0:00:01.5]} 51. Ke4
{[%clk 0:00:05.9]} 51... Rxd6 {[%clk 0:00:01.2]} 52. Rh7 {[%clk 0:00:04.6]}
52... Nc5+ {[%clk 0:00:02.1]} 53. Kf3 {[%clk 0:00:04.1]} 53... Nd7 {[%clk
0:00:03]} 54. Rf7 {[%clk 0:00:03.7]} 54... Ba7 {[%clk 0:00:03.9]} 55. Rh7 {[%clk
0:00:02.9]} 55... Kc7 {[%clk 0:00:04.8]} 56. Be2 {[%clk 0:00:01.7]} 56... Kd8
{[%clk 0:00:05.7]} 57. Bc4 {[%clk 0:00:01.7]} 57... Ne5+ {[%clk 0:00:06.6]} 58.
Ke4 {[%clk 0:00:01.1]} 58... Nxc4 {[%clk 0:00:07.5]} 59. Rxa7 {[%clk 0:00:01.3]}
59... Rb6 {[%clk 0:00:07.4]} 0-1